Workbook

Sheet ADHC ATB SUMMARY
A1: New York State Department of Health
A2: Division of Finance and Rate Setting
A3: SFY 2026 ATB State Share Payment for ADHC
C6: 5975067.35 | D6: 2987533.675
A7: Opcert | B7: Name | C7: Gross Total | D7: State Share
A8: 700235653 | B8: Amsterdam Nursing Home Corp (amsterdam House) | C8: 5745.74 | D8: 2872.87
A9: 700031954 | B9: Bainbridge Nursing And Rehabilitation Center | C9: 416847.41 | D9: 208423.705
A10: 515731853 | B10: Brookside Multicare Nursing Center | C10: 138118.75 | D10: 69059.375
A11: 700136453 | B11: Bushwick Center for Rehabilitation and Health Care | C11: 43675.66 | D11: 21837.83
A12: 700136454 | B12: Bushwick Center for Rehabilitation and Health Care | C12: 25795.56 | D12: 12897.78
A13: 322730453 | B13: Charles T Sitrin Health Care Center Inc | C13: 165220.16 | D13: 82610.08
A14: 295231053 | B14: Cold Spring Hills Center for Nursing and Rehabilitation | C14: 240577.75 | D14: 120288.875
A15: 110130663 | B15: Cortland Regional Nursing and Rehabilitation Center | C15: 57859.2 | D15: 28929.6
A16: 262330056 | B16: Crouse Community Center Inc | C16: 55147.05 | D16: 27573.525
A17: 262330053 | B17: Crouse Community Center Inc | C17: 29713.11 | D17: 14856.555
A18: 262330054 | B18: Crouse Community Center Inc | C18: 18703.79 | D18: 9351.895
A19: 700138053 | B19: Dr Susan Smith Mckinney Nursing and Rehabilitation Center | C19: 32947.6 | D19: 16473.8
A20: 532030253 | B20: Elderwood at Waverly | C20: 34193.18 | D20: 17096.59
A21: 212430053 | B21: Foltsbrook Center for Nursing and Rehabilitation | C21: 37086.14 | D21: 18543.07
A22: 572430253 | B22: Fort Hudson Nursing Center Inc | C22: 54745.25 | D22: 27372.625
A23: 700180853 | B23: Four Seasons Nursing and Rehabilitation Center | C23: 450779.42 | D23: 225389.71
A24: 700180854 | B24: Four Seasons Nursing and Rehabilitation Center | C24: 330420.23 | D24: 165210.115
A25: 700340253 | B25: Franklin Center for Rehabilitation and Nursing | C25: 116763.08 | D25: 58381.54
A26: 435030553 | B26: Friedwald Center for Rehabilitation & Nursing LLC | C26: 131629.68 | D26: 65814.84
A27: 515330753 | B27: Gurwin Jewish Nursing and Rehabilitation Center | C27: 398505.24 | D27: 199252.62
A28: 295130653 | B28: Highfield Gardens Care Center of Great Neck | C28: 153648.32 | D28: 76824.16
A29: 275030453 | B29: Jewish Home & Infirmary Of Rochester Ny Inc | C29: 346030.16 | D29: 173015.08
A30: 330130953 | B30: Jewish Home Of Central New York | C30: 97094.97 | D30: 48547.485
A31: 252230053 | B31: Livingston County Center for Nursing and Rehabilitatio | C31: 1165.22 | D31: 582.61
A32: 515131053 | B32: Long Island State Veterans Home | C32: 32646.25 | D32: 16323.125
A33: 515432953 | B33: Maria Regina Residence Inc | C33: 33007.87 | D33: 16503.935
A34: 322730553 | B34: MVHS Rehabilitation and Nursing Center | C34: 7413.21 | D34: 3706.605
A35: 435330153 | B35: Northern Metropolitan Residential Health Care Facility Inc | C35: 80319.82 | D35: 40159.91
A36: 320231753 | B36: Oneida Center for Rehabilitation and Nursing | C36: 76763.89 | D36: 38381.945
A37: 700139153 | B37: Palm Gardens Care Center LLC | C37: 89420.59 | D37: 44710.295
A38: 700139154 | B38: Palm Gardens Care Center LLC | C38: 9683.38 | D38: 4841.69
A39: 090130453 | B39: Plattsburgh Rehabilitation and Nursing Center | C39: 65714.39 | D39: 32857.195
A40: 322730353 | B40: Presbyterian Home For Central New York Inc | C40: 23605.75 | D40: 11802.875
A41: 140430053 | B41: Schofield Residence | C41: 197565.06 | D41: 98782.53
A42: 370231253 | B42: Seneca Hill Manor Inc | C42: 924.14 | D42: 462.07
A43: 700038453 | B43: Split Rock Rehabilitation and Health Care Center | C43: 24791.06 | D43: 12395.53
A44: 275730053 | B44: St Anns Community (Aged) | C44: 124537.91 | D44: 62268.955
A45: 515731153 | B45: St Johnland Nursing Center Inc | C45: 19427.03 | D45: 9713.515
A46: 370230953 | B46: St Luke Residential Health Care Facility Inc | C46: 47151.23 | D46: 23575.615
A47: 700330053 | B47: St Marys Hospital For Children Inc | C47: 282425.22 | D47: 141212.61
A48: 030330753 | B48: Susquehanna Nursing & Rehabilitation Center LLC | C48: 102499.18 | D48: 51249.59
A49: 132730153 | B49: The Baptist Home at Brookmeade | C49: 5585.02 | D49: 2792.51
A50: 210130253 | B50: The Grand Rehabilitation and Nursing at Mohawk | C50: 89480.86 | D50: 44740.43
A51: 130230953 | B51: The Grand Rehabilitation and Nursing at River Valley | C51: 121323.51 | D51: 60661.755
A52: 320131053 | B52: The Grand Rehabilitation and Nursing at Rome | C52: 59426.22 | D52: 29713.11
A53: 595730453 | B53: The Grove at Valhalla Rehabilitation and Nursing Center | C53: 68145.28 | D53: 34072.64
A54: 515732055 | B54: The Hamlet Rehabilitation and Healthcare Center at Nesconset | C54: 371182.84 | D54: 185591.42
A55: 515732054 | B55: The Hamlet Rehabilitation and Healthcare Center at Nesconset | C55: 221833.78 | D55: 110916.89
A56: 700234053 | B56: The New Jewish Home, Manhattan | C56: 130122.93 | D56: 65061.465
A57: 590930253 | B57: The New Jewish Home, Sarah Neuman | C57: 45483.76 | D57: 22741.88
A58: 590330953 | B58: The Wartburg Home | C58: 96934.25 | D58: 48467.125
A59: 212430153 | B59: Valley Health Services Inc | C59: 33007.87 | D59: 16503.935
A60: 575030153 | B60: Washington Center for Rehabilitation and Healthcare | C60: 42912.24 | D60: 21456.12
A61: 280100163 | B61: Wilkinson Residential Health Care Facility | C61: 38271.45 | D61: 19135.725
A62: 590731953 | B62: Yonkers Gardens Center for Nursing and Rehabilitation | C62: 51048.69 | D62: 25524.345

Sheet 1-1-24 ADHC rates (hidden)
A1: January 1, 2024 ADHC Initial Rates
A2: 1 | B2: 2 | C2: 3 | D2: 4 | E2: 5 | F2: 6 | G2: 7 | H2: 8 | I2: 9 | J2: 10 | K2: 11 | L2: 12 | M2: 13 | N2: 9-6
A3: Organization | B3: LOC CODE | C3: Name | D3: Date | E3: Operating Per Diem | F3: Capital with 5% capital reduction | G3: Operating + Capital Rate | H3: Combined Rate Ceiling | I3: Lower of Rate or Ceiling | J3: 1.5% Add-On | K3: 1% add-on | L3: 7.5% add -on | M3: Initial Jan 1, 2024 Rate | N3: Operating rate | O3: Op rate from other sheet
A4: 700235653 | B4: 03 | C4: Amsterdam Nursing Home Corp (amsterdam House) | D4: 2024-01-01 | E4: 126.13 | F4: 9.83 | G4: =+E4+F4 -> 135.96 | H4: 147.36 | I4: =IF(G4<H4,G4,H4) -> 135.96 | J4: =ROUND(+E4*0.015,2) -> 1.89 | K4: =ROUND((+E4+J4)*0.01,2) -> 1.28 | L4: =ROUND(+(E4+J4+K4)*0.075,2) -> 9.7 | M4: =SUM(I4:L4) -> 148.83 | N4: =I4-F4 -> 126.13 | O4: =VLOOKUP(A4,#REF!,4,FALSE) ->  | P4: =O4=O4 -> 
A5: 700031954 | B5: 04 | C5: Bainbridge Nursing And Rehabilitation Center | D5: 2024-01-01 | E5: 91.55 | F5: 1.25 | G5: =+E5+F5 -> 92.8 | H5: 127.85 | I5: 92.8 | J5: 1.37 | K5: 0.93 | L5: 7.04 | M5: 102.14 | N5: =I5-F5 -> 91.55 | O5: =VLOOKUP(A5,#REF!,4,FALSE) ->  | P5: =O5=O5 -> 
A6: 592130353 | B6: 03 | C6: Bethel Nursing and Rehabilitation Center | D6: 2024-01-01 | E6: 122.78 | F6: 2.64 | G6: =+E6+F6 -> 125.42 | H6: 127.63 | I6: 125.42 | J6: 1.84 | K6: 1.25 | L6: 9.44 | M6: 137.95 | N6: 122.78 | O6: =VLOOKUP(A6,#REF!,4,FALSE) -> 
A7: 515731853 | B7: 03 | C7: Brookside Multicare Nursing Center | D7: 2024-01-01 | E7: 119.77 | F7: 8.26 | G7: 128.03 | H7: 128.15 | I7: 128.03 | J7: 1.8 | K7: 1.22 | L7: 9.21 | M7: 140.26 | N7: 119.77 | O7: =VLOOKUP(A7,#REF!,4,FALSE) -> 
A8: 700136454 | B8: 04 | C8: Bushwick Center for Rehabilitation and Health Care | D8: 2024-01-01 | E8: 102.67 | F8: 14.69 | G8: 117.36 | H8: 137.23 | I8: 117.36 | J8: 1.54 | K8: 1.04 | L8: 7.89 | M8: 127.83 | N8: 102.67 | O8: =VLOOKUP(A8,#REF!,4,FALSE) -> 
A9: 700136453 | B9: 03 | C9: Bushwick Center for Rehabilitation and Health Care | D9: 2024-01-01 | E9: 84.72 | F9: 12.07 | G9: 96.79 | H9: 137.23 | I9: 96.79 | J9: 1.27 | K9: 0.86 | L9: 6.51 | M9: 105.43 | N9: 84.72 | O9: =VLOOKUP(A9,#REF!,4,FALSE) -> 
A10: 322730453 | B10: 03 | C10: Charles T Sitrin Health Care Center Inc | D10: 2024-01-01 | E10: 88.31 | F10: 11.01 | G10: 99.32 | H10: 100.39 | I10: 99.32 | J10: 1.32 | K10: 0.9 | L10: 6.79 | M10: 108.33 | N10: 88.31 | O10: =VLOOKUP(A10,#REF!,4,FALSE) -> 
A11: 295231053 | B11: 03 | C11: Cold Spring Hills Center for Nursing and Rehabilitation | D11: 2024-01-01 | E11: 133.4 | F11: 6.45 | G11: 139.85 | H11: 140.69 | I11: 139.85 | J11: 2 | K11: 1.35 | L11: 10.26 | M11: 153.46 | N11: 133.4 | O11: =VLOOKUP(A11,#REF!,4,FALSE) -> 
A12: 110130663 | B12: 03 | C12: Cortland Regional Nursing and Rehabilitation Center | D12: 2024-01-01 | E12: 402.64 | F12: 9.14 | G12: 411.78 | H12: 95.65 | I12: 95.65 | J12: 6.04 | K12: 4.09 | L12: 30.96 | M12: 136.74 | N12: 86.51 | O12: =VLOOKUP(A12,#REF!,4,FALSE) -> 
A13: 262330057 | B13: 07 | C13: Crouse Community Center Inc (New Unit) | D13: 2024-01-01 | E13: 103.2 | F13: 4.92 | G13: 108.12 | H13: 107.1 | I13: 107.1 | J13: 1.55 | K13: 1.05 | L13: 7.94 | M13: 117.64 | N13: 102.18 | O13: =VLOOKUP(A13,#REF!,4,FALSE) -> 
A14: 262330056 | B14: 06 | C14: Crouse Community Center Inc | D14: 2024-01-01 | E14: 86.18 | F14: 5.95 | G14: 92.13 | H14: 107.1 | I14: 92.13 | J14: 1.29 | K14: 0.87 | L14: 6.63 | M14: 100.92 | N14: 86.18 | O14: =VLOOKUP(A14,#REF!,4,FALSE) -> 
A15: 700138054 | B15: 04 | C15: Dr Susan Smith Mckinney Nursing and Rehabilitation Center | D15: 2024-01-01 | E15: 151 | F15: =ROUND(12.02*0.95,2) -> 11.42 | G15: 162.42 | H15: 147.27 | I15: 147.27 | J15: 2.27 | K15: 1.53 | L15: 11.61 | M15: 162.68 | N15: 135.85 | O15: =VLOOKUP(A15,#REF!,4,FALSE) -> 
A16: 700138053 | B16: 03 | C16: Dr Susan Smith Mckinney Nursing and Rehabilitation Center | D16: 2024-01-01 | E16: 103.51 | F16: =ROUND(40.3*0.95,2) -> 38.29 | G16: 141.8 | H16: 147.27 | I16: 141.8 | J16: 1.55 | K16: 1.05 | L16: 7.96 | M16: 152.36 | N16: 103.51 | O16: =VLOOKUP(A16,#REF!,4,FALSE) -> 
A17: 532030253 | B17: 03 | C17: Elderwood at Waverly | D17: 2024-01-01 | E17: 90.94 | F17: 8.81 | G17: 99.75 | H17: 117.11 | I17: 99.75 | J17: 1.36 | K17: 0.92 | L17: 6.99 | M17: 109.02 | N17: 90.94 | O17: =VLOOKUP(A17,#REF!,4,FALSE) -> 
A18: 700337553 | B18: 03 | C18: Fairview Nursing Care Center Inc | D18: 2024-01-01 | E18: 91.92 | F18: 2.75 | G18: 94.67 | H18: 142.96 | I18: 94.67 | J18: 1.38 | K18: 0.93 | L18: 7.07 | M18: 104.05 | N18: 91.92 | O18: =VLOOKUP(A18,#REF!,4,FALSE) -> 
A19: 212430053 | B19: 03 | C19: Foltsbrook Center for Nursing and Rehabilitation | D19: 2024-01-01 | E19: 66.36 | F19: 9.8 | G19: 76.16 | H19: 90.65 | I19: 76.16 | J19: 1 | K19: 0.67 | L19: 5.1 | M19: 82.93 | N19: 66.36 | O19: =VLOOKUP(A19,#REF!,4,FALSE) -> 
A20: 572430253 | B20: 03 | C20: Fort Hudson Nursing Center Inc | D20: 2024-01-01 | E20: 87.67 | F20: 8.58 | G20: 96.25 | H20: 96.89 | I20: 96.25 | J20: 1.32 | K20: 0.89 | L20: 6.74 | M20: 105.2 | N20: 87.67 | O20: =VLOOKUP(A20,#REF!,4,FALSE) -> 
A21: 700180854 | B21: 04 | C21: Four Seasons Nursing and Rehabilitation Center | D21: 2024-01-01 | E21: 95.15 | F21: 3.93 | G21: 99.08 | H21: 134.07 | I21: 99.08 | J21: 1.43 | K21: 0.97 | L21: 7.32 | M21: 108.8 | N21: 95.15 | O21: =VLOOKUP(A21,#REF!,4,FALSE) -> 
A22: 700180853 | B22: 03 | C22: Four Seasons Nursing and Rehabilitation Center | D22: 2024-01-01 | E22: 86.48 | F22: 2.45 | G22: 88.93 | H22: 134.07 | I22: 88.93 | J22: 1.3 | K22: 0.88 | L22: 6.65 | M22: 97.76 | N22: 86.48 | O22: =VLOOKUP(A22,#REF!,4,FALSE) -> 
A23: 700340253 | B23: 03 | C23: Franklin Center for Rehabilitation and Nursing | D23: 2024-01-01 | E23: 95.13 | F23: 15.43 | G23: 110.56 | H23: 132.51 | I23: 110.56 | J23: 1.43 | K23: 0.97 | L23: 7.31 | M23: 120.27 | N23: 95.13 | O23: =VLOOKUP(A23,#REF!,4,FALSE) -> 
A24: 435030553 | B24: 03 | C24: Friedwald Center for Rehabilitation & Nursing LLC | D24: 2024-01-01 | E24: 88.8 | F24: 7.01 | G24: 95.81 | H24: 83.08 | I24: 83.08 | J24: 1.33 | K24: 0.9 | L24: 6.83 | M24: 92.14 | N24: 76.07 | O24: =VLOOKUP(A24,#REF!,4,FALSE) -> 
A25: 515330753 | B25: 03 | C25: Gurwin Jewish Nursing and Rehabilitation Center | D25: 2024-01-01 | E25: 131.69 | F25: 6.24 | G25: 137.93 | H25: 178.29 | I25: 137.93 | J25: 1.98 | K25: 1.34 | L25: 10.13 | M25: 151.38 | N25: 131.69 | O25: =VLOOKUP(A25,#REF!,4,FALSE) -> 
A26: 295130653 | B26: 03 | C26: Highfield Gardens Care Center of Great Neck | D26: 2024-01-01 | E26: 99.48 | F26: 10.82 | G26: 110.3 | H26: 147.48 | I26: 110.3 | J26: 1.49 | K26: 1.01 | L26: 7.65 | M26: 120.45 | N26: 99.48 | O26: =VLOOKUP(A26,#REF!,4,FALSE) -> 
A27: 275030453 | B27: 03 | C27: Jewish Home & Infirmary Of Rochester Ny Inc | D27: 2024-01-01 | E27: 111.45 | F27: 21.48 | G27: 132.93 | H27: 118.1 | I27: 118.1 | J27: 1.67 | K27: 1.13 | L27: 8.57 | M27: 129.47 | N27: 96.62 | O27: =VLOOKUP(A27,#REF!,4,FALSE) -> 
A28: 330130953 | B28: 03 | C28: Jewish Home Of Central New York | D28: 2024-01-01 | E28: 70.5 | F28: 5.14 | G28: 75.64 | H28: 101.83 | I28: 75.64 | J28: 1.06 | K28: 0.72 | L28: 5.42 | M28: 82.84 | N28: 70.5 | O28: =VLOOKUP(A28,#REF!,4,FALSE) -> 
A29: 515131053 | B29: 03 | C29: Long Island State Veterans Home | D29: 2024-01-01 | E29: 151.19 | F29: 9.22 | G29: 160.41 | H29: 140.22 | I29: 140.22 | J29: 2.27 | K29: 1.53 | L29: 11.62 | M29: 155.64 | N29: 131 | O29: =VLOOKUP(A29,#REF!,4,FALSE) -> 
A30: 130230653 | B30: 03 | C30: Lutheran Center at Poughkeepsie Inc | D30: 2024-01-01 | E30: 149.57 | F30: 18.3 | G30: 167.87 | H30: 105.53 | I30: 105.53 | J30: 2.24 | K30: 1.52 | L30: 11.5 | M30: 120.79 | N30: 87.23 | O30: =VLOOKUP(A30,#REF!,4,FALSE) -> 
A31: 515432953 | B31: 03 | C31: Maria Regina Residence Inc | D31: 2024-01-01 | E31: 187.12 | F31: 7.96 | G31: 195.08 | H31: 140.16 | I31: 140.16 | J31: 2.81 | K31: 1.9 | L31: 14.39 | M31: 159.26 | N31: 132.2 | O31: =VLOOKUP(A31,#REF!,4,FALSE) -> 
A32: 322730553 | B32: 03 | C32: MVHS Rehabilitation and Nursing Center | D32: 2024-01-01 | E32: 88.8 | F32: 11.57 | G32: 100.37 | H32: 120.9 | I32: 100.37 | J32: 1.33 | K32: 0.9 | L32: 6.83 | M32: 109.43 | N32: 88.8 | O32: =VLOOKUP(A32,#REF!,4,FALSE) -> 
A33: 435330153 | B33: 03 | C33: Northern Metropolitan Residential Health Care Facility Inc | D33: 2024-01-01 | E33: 118.71 | F33: 23.22 | G33: 141.93 | H33: 143.76 | I33: 141.93 | J33: 1.78 | K33: 1.2 | L33: 9.13 | M33: 154.04 | N33: 118.71 | O33: =VLOOKUP(A33,#REF!,4,FALSE) -> 
A34: 320231753 | B34: 03 | C34: Oneida Center for Rehabilitation and Nursing | D34: 2024-01-01 | E34: 72.9 | F34: 1.9 | G34: 74.8 | H34: 95.47 | I34: 74.8 | J34: 1.09 | K34: 0.74 | L34: 5.6 | M34: 82.23 | N34: 72.9 | O34: =VLOOKUP(A34,#REF!,4,FALSE) -> 
A35: 700139154 | B35: 04 | C35: Palm Gardens Care Center LLC | D35: 2024-01-01 | E35: 100.43 | F35: 2.66 | G35: 103.09 | H35: 138.59 | I35: 103.09 | J35: 1.51 | K35: 1.02 | L35: 7.72 | M35: 113.34 | N35: 100.43 | O35: =VLOOKUP(A35,#REF!,4,FALSE) -> 
A36: 700139153 | B36: 03 | C36: Palm Gardens Care Center LLC | D36: 2024-01-01 | E36: 82.81 | F36: 9.3 | G36: 92.11 | H36: 136.02 | I36: 92.11 | J36: 1.24 | K36: 0.84 | L36: 6.37 | M36: 100.56 | N36: 82.81 | O36: =VLOOKUP(A36,#REF!,4,FALSE) -> 
A37: 090130453 | B37: 03 | C37: Plattsburgh Rehabilitation and Nursing Center | D37: 2024-01-01 | E37: 81.46 | F37: 7.78 | G37: 89.24 | H37: 97.79 | I37: 89.24 | J37: 1.22 | K37: 0.83 | L37: 6.26 | M37: 97.55 | N37: 81.46 | O37: =VLOOKUP(A37,#REF!,4,FALSE) -> 
A38: 322730353 | B38: 03 | C38: Presbyterian Home For Central New York Inc | D38: 2024-01-01 | E38: 124.21 | F38: 6.56 | G38: 130.77 | H38: 87.95 | I38: 87.95 | J38: 1.86 | K38: 1.26 | L38: 9.55 | M38: 100.62 | N38: 81.39 | O38: =VLOOKUP(A38,#REF!,4,FALSE) -> 
A39: 140430053 | B39: 03 | C39: Schofield Residence | D39: 2024-01-01 | E39: 135.32 | F39: 5.67 | G39: 140.99 | H39: 92.23 | I39: 92.23 | J39: 2.03 | K39: 1.37 | L39: 10.4 | M39: 106.03 | N39: 86.56 | O39: =VLOOKUP(A39,#REF!,4,FALSE) -> 
A40: 370231253 | B40: 03 | C40: Seneca Hill Manor Inc | D40: 2024-01-01 | E40: 77.43 | F40: 4.65 | G40: 82.08 | H40: 95.44 | I40: 82.08 | J40: 1.16 | K40: 0.79 | L40: 5.95 | M40: 89.98 | N40: 77.43 | O40: =VLOOKUP(A40,#REF!,4,FALSE) -> 
A41: 700038453 | B41: 03 | C41: Split Rock Rehabilitation and Health Care Center | D41: 2024-01-01 | E41: 78.31 | F41: 6.87 | G41: 85.18 | H41: 114.4 | I41: 85.18 | J41: 1.17 | K41: 0.79 | L41: 6.02 | M41: 93.16 | N41: 78.31 | O41: =VLOOKUP(A41,#REF!,4,FALSE) -> 
A42: 275730053 | B42: 03 | C42: St Anns Community (Aged) | D42: 2024-01-01 | E42: 102.64 | F42: 19.54 | G42: 122.18 | H42: 93.18 | I42: 93.18 | J42: 1.54 | K42: 1.04 | L42: 7.89 | M42: 103.65 | N42: 73.64 | O42: =VLOOKUP(A42,#REF!,4,FALSE) -> 
A43: 370230953 | B43: 03 | C43: St Luke Residential Health Care Facility Inc | D43: 2024-01-01 | E43: 59.72 | F43: 4.52 | G43: 64.24 | H43: 95.93 | I43: 64.24 | J43: 0.9 | K43: 0.61 | L43: 4.59 | M43: 70.34 | N43: 59.72 | O43: =VLOOKUP(A43,#REF!,4,FALSE) -> 
A44: 700330053 | B44: 03 | C44: St Marys Hospital For Children Inc | D44: 2024-01-01 | E44: 243.86 | F44: 25.81 | G44: 269.67 | H44: 329.94 | I44: 269.67 | J44: 3.66 | K44: 2.48 | L44: 18.75 | M44: 294.56 | N44: 243.86 | O44: =VLOOKUP(A44,#REF!,4,FALSE) -> 
A45: 030330753 | B45: 03 | C45: Susquehanna Nursing & Rehabilitation Center LLC | D45: 2024-01-01 | E45: 63.08 | F45: 17.96 | G45: 81.04 | H45: 80.99 | I45: 80.99 | J45: 0.95 | K45: 0.64 | L45: 4.85 | M45: 87.43 | N45: 63.03 | O45: =VLOOKUP(A45,#REF!,4,FALSE) -> 
A46: 132730153 | B46: 03 | C46: The Baptist Home at Brookmeade | D46: 2024-01-01 | E46: 47.59 | F46: 3.81 | G46: 51.4 | H46: 108.78 | I46: 51.4 | J46: 0.71 | K46: 0.48 | L46: 3.66 | M46: 56.25 | N46: 47.59 | O46: =VLOOKUP(A46,#REF!,4,FALSE) -> 
A47: 102330204 | B47: 04 | C47: The Grand Rehabilitation and Nursing at Barnwell | D47: 2024-01-01 | E47: 99.74 | F47: 0.43 | G47: 100.17 | H47: 106.94 | I47: 100.17 | J47: 1.5 | K47: 1.01 | L47: 7.67 | M47: 110.35 | N47: 99.74 | O47: =VLOOKUP(A47,#REF!,4,FALSE) -> 
A48: 210130253 | B48: 03 | C48: The Grand Rehabilitation and Nursing at Mohawk | D48: 2024-01-01 | E48: 125.04 | F48: 4.87 | G48: 129.91 | H48: 114.15 | I48: 114.15 | J48: 1.88 | K48: 1.27 | L48: 9.61 | M48: 126.91 | N48: 109.28 | O48: =VLOOKUP(A48,#REF!,4,FALSE) -> 
A49: 130230953 | B49: 03 | C49: The Grand Rehabilitation and Nursing at River Valley | D49: 2024-01-01 | E49: 73.61 | F49: 4.24 | G49: 77.85 | H49: 105.5 | I49: 77.85 | J49: 1.1 | K49: 0.75 | L49: 5.66 | M49: 85.36 | N49: 73.61 | O49: =VLOOKUP(A49,#REF!,4,FALSE) -> 
A50: 320131053 | B50: 03 | C50: The Grand Rehabilitation and Nursing at Rome | D50: 2024-01-01 | E50: 51.61 | F50: 6.71 | G50: 58.32 | H50: 77.5 | I50: 58.32 | J50: 0.77 | K50: 0.52 | L50: 3.97 | M50: 63.58 | N50: 51.61 | O50: =VLOOKUP(A50,#REF!,4,FALSE) -> 
A51: 515732054 | B51: 04 | C51: The Hamlet Rehabilitation and Healthcare Center at Nesconset | D51: 2024-01-01 | E51: 127.88 | F51: 7.96 | G51: 135.84 | H51: 143.54 | I51: 135.84 | J51: 1.92 | K51: 1.3 | L51: 9.83 | M51: 148.89 | N51: 127.88 | O51: =VLOOKUP(A51,#REF!,4,FALSE) -> 
A52: 515732055 | B52: 05 | C52: The Hamlet Rehabilitation and Healthcare Center at Nesconset | D52: 2024-01-01 | E52: 122.6 | F52: 7.31 | G52: 129.91 | H52: 143.54 | I52: 129.91 | J52: 1.84 | K52: 1.24 | L52: 9.43 | M52: 142.42 | N52: 122.6 | O52: =VLOOKUP(A52,#REF!,4,FALSE) -> 
A53: 700234053 | B53: 03 | C53: The New Jewish Home, Manhattan | D53: 2024-01-01 | E53: 182.56 | F53: 1.49 | G53: 184.05 | H53: 178.32 | I53: 178.32 | J53: 2.74 | K53: 1.85 | L53: 14.04 | M53: 196.95 | N53: 176.83 | O53: =VLOOKUP(A53,#REF!,4,FALSE) -> 
A54: 590330953 | B54: 03 | C54: The Wartburg Home | D54: 2024-01-01 | E54: 111.52 | F54: 5.19 | G54: 116.71 | H54: 152.41 | I54: 116.71 | J54: 1.67 | K54: 1.13 | L54: 8.57 | M54: 128.08 | N54: 111.52 | O54: =VLOOKUP(A54,#REF!,4,FALSE) -> 
A55: 212430153 | B55: 03 | C55: Valley Health Services Inc | D55: 2024-01-01 | E55: 74.41 | F55: 9.54 | G55: 83.95 | H55: 106.74 | I55: 83.95 | J55: 1.12 | K55: 0.76 | L55: 5.72 | M55: 91.55 | N55: 74.41 | O55: =VLOOKUP(A55,#REF!,4,FALSE) -> 
A56: 575030153 | B56: 03 | C56: Washington Center for Rehabilitation and Healthcare | D56: 2024-01-01 | E56: 72.08 | F56: 8.98 | G56: 81.06 | H56: 98.81 | I56: 81.06 | J56: 1.08 | K56: 0.73 | L56: 5.54 | M56: 88.41 | N56: 72.08 | O56: =VLOOKUP(A56,#REF!,4,FALSE) -> 
A57: 582000063 | B57: 03 | C57: Wayne Health Care/Newark-Wayne | D57: 2024-01-01 | E57: 98.92 | F57: 0.27 | G57: 99.19 | H57: 120.86 | I57: 99.19 | J57: 1.48 | K57: 1 | L57: 7.61 | M57: 109.28 | N57: 98.92 | O57: =VLOOKUP(A57,#REF!,4,FALSE) -> 
A58: 280100163 | B58: 03 | C58: Wilkinson Residential Health Care Facility | D58: 2024-01-01 | E58: 106.28 | F58: 10.55 | G58: 116.83 | H58: 135.57 | I58: 116.83 | J58: 1.59 | K58: 1.08 | L58: 8.17 | M58: 127.67 | N58: 106.28 | O58: =VLOOKUP(A58,#REF!,4,FALSE) -> 
A59: 590731953 | B59: 03 | C59: Yonkers Gardens Center for Nursing and Rehabilitation | D59: 2024-01-01 | E59: 154.77 | F59: 13.81 | G59: 168.58 | H59: 153.56 | I59: 153.56 | J59: 2.32 | K59: 1.57 | L59: 11.9 | M59: 169.35 | N59: 139.75 | O59: =VLOOKUP(A59,#REF!,4,FALSE) -> 
A62: 380100063 | C62: Aurelia Osborn Fox Memorial Hospital | D62: 04/01/2023 | N62: 117.18
A63: 700031953 | C63: Bainbridge Nursing And Rehabilitation Center | D63: 04/01/2023 | N63: 98.54
A64: 515132153 | C64: Bellhaven Center For Rehabilitation and Nursing Care | D64: 04/01/2023 | N64: 103.59
A65: 700039953 | C65: Beth Abraham Center for Rehabilitation and Nursing | D65: 04/01/2023 | N65: 144.19
A66: 700039954 | C66: Beth Abraham Center for Rehabilitation and Nursing | D66: 04/01/2023 | N66: 131.51
A67: 700039955 | C67: Beth Abraham Center for Rehabilitation and Nursing | D67: 04/01/2023 | N67: 155.53
A68: 700139454 | C68: Boro Park Center for Rehabilitation and Healthcare | D68: 04/01/2023 | N68: 175.33
A69: 700039753 | C69: Bronx Gardens Rehabilitation and Nursing Center | D69: 04/01/2023 | N69: 118.82
A70: 700180053 | C70: Brooklyn Gardens Nursing & Rehabilitation Center | D70: 04/01/2023 | N70: 156.41
A71: 700130853 | C71: Brooklyn United Methodist Church Home | D71: 04/01/2023 | N71: 204.52
A72: 515330653 | C72: Carillon Nursing and Rehabilitation Center | D72: 04/01/2023 | N72: 92.67
A73: 700337353 | C73: Caring Family Nursing and Rehabilitation Center | D73: 04/01/2023 | N73: 77.24
A74: 700431053 | C74: Carmel Richmond Healthcare and Rehabilitation Center | D74: 04/01/2023 | N74: 82.85
A75: 330132653 | C75: Central Park Rehabilitation and Nursing Center | D75: 04/01/2023 | N75: 41.6
A76: 700335153 | C76: Chapin Home For The Aging | D76: 04/01/2023 | N76: 120.74
A77: 700132353 | C77: Cobble Hill Health Center Inc | D77: 04/01/2023 | N77: 97.71
A78: 700134853 | C78: Concord Nursing and Rehabilitation Center | D78: 04/01/2023 | N78: 95.1
A79: 500130053 | C79: Corning Center for Rehabilitation and Healthcare | D79: 04/01/2023 | N79: 69.19
A80: 262330053 | C80: Crouse Community Center Inc | D80: 04/01/2023 | N80: 105.26
A81: 262330054 | C81: Crouse Community Center Inc | D81: 04/01/2023 | N81: 98.5
A82: 010131253 | C82: Daughters Of Sarah Nursing Center | D82: 04/01/2023 | N82: 67.34
A83: 700180953 | C83: Downtown Brooklyn Nursing & Rehabilitation Center | D83: 04/01/2023 | N83: 150.19
A84: 700180955 | C84: Downtown Brooklyn Nursing & Rehabilitation Center | D84: 04/01/2023 | N84: 127.61
A85: 700180956 | C85: Downtown Brooklyn Nursing & Rehabilitation Center | D85: 04/01/2023 | N85: 137.23
A86: 700335953 | C86: Dry Harbor Nursing Home | D86: 04/01/2023 | N86: 73.5
A87: 410230953 | C87: Eddy Memorial Geriatric Center | D87: 04/01/2023 | N87: 87.82
A88: 410230954 | C88: Eddy Memorial Geriatric Center | D88: 04/01/2023 | N88: 67.95
A89: 275430453 | C89: Edna Tina Wilson Living Center | D89: 04/01/2023 | N89: 138.73
A90: 072230453 | C90: Elcor Nursing and Rehabilitation Center | D90: 04/01/2023 | N90: 86.38
A91: 503430063 | C91: Elderwood at Hornell | D91: 04/01/2023 | N91: 86.78
A92: 565530353 | C92: Elderwood at North Creek | D92: 04/01/2023 | N92: 177.32
A93: 700339653 | C93: Elmhurst Care Center Inc | D93: 04/01/2023 | N93: 86.96
A94: 272530053 | C94: Fairport Baptist Homes | D94: 04/01/2023 | N94: 68.1
A95: 132730053 | C95: Ferncliff Nursing Home Co Inc | D95: 04/01/2023 | N95: 48.01
A96: 700338753 | C96: Forest View Center for Rehabilitation & Nursing | D96: 04/01/2023 | N96: 80.38
A97: 700136953 | C97: Haym Solomon Home For The Aged | D97: 04/01/2023 | N97: 102.34
A98: 700030253 | C98: Hebrew Home For The Aged At Riverdale | D98: 04/01/2023 | N98: 144.01
A99: 022830653 | C99: Highland Park Rehabilitation and Nursing Center | D99: 04/01/2023 | N99: 114.34
A100: 700335053 | C100: Hillside Manor Rehabilitation and Extended Care Center | D100: 04/01/2023 | N100: 95.92
A101: 515330953 | C101: Huntington Hills Center for Health and Rehabilitation | D101: 04/01/2023 | N101: 157.91
A102: 502230163 | C102: Ira Davenport Memorial Hospital SNF HRF | D102: 04/01/2023 | N102: 87.03
A103: 700235253 | C103: Isabella Geriatric Center Inc | D103: 04/01/2023 | N103: 146.88
A104: 700180353 | C104: King David Center for Nursing and Rehabilitation | D104: 04/01/2023 | N104: 136.71
A105: 242400063 | C105: Lewis County General Hospital-nursing Home Unit | D105: 04/01/2023 | N105: 143.81
A106: 340230254 | C106: Living Center At Geneva South | D106: 04/01/2023 | N106: 137.68
A107: 340230255 | C107: Living Center At Geneva South | D107: 04/01/2023 | N107: 80.11
A108: 252230053 | C108: Livingston County Center for Nursing and Rehabilitatio | D108: 04/01/2023 | N108: 254.74
A109: 330132754 | C109: Loretto Health and Rehabilitation Center | D109: 04/01/2023 | N109: 82.73
A110: 330132755 | C110: Loretto Health and Rehabilitation Center | D110: 04/01/2023 | N110: 335.4
A111: 342930063 | C111: MM Ewing Continuing Care Center | D111: 04/01/2023 | N111: 67.86
A112: 700341953 | C112: Margaret Tietz Center For Nursing Care, Inc. | D112: 04/01/2023 | N112: 121.21
A113: 512030263 | C113: Massapequa Center Rehabilitation & Nursing | D113: 04/01/2023 | N113: 138.27
A114: 700039153 | C114: Morningside Nursing and Rehabilitation Center | D114: 04/01/2023 | N114: 102.27
A115: 700039154 | C115: Morningside Nursing and Rehabilitation Center | D115: 04/01/2023 | N115: 116.54
A116: 290630553 | C116: Nassau Rehabilitation & Nursing Center | D116: 04/01/2023 | N116: 297.05
A117: 291030053 | C117: North Shore-LIJ Orzac Center for Rehabilitation | D117: 04/01/2023 | N117: 196.03
A118: 435030453 | C118: Northern Manor Geriatric Center Inc | D118: 04/01/2023 | N118: 83.2
A119: 290230653 | C119: Park Avenue Extended Care Facility | D119: 04/01/2023 | N119: 62.66
A120: 275430263 | C120: Park Ridge Nursing Home | D120: 04/01/2023 | N120: 75.81
A121: 275430264 | C121: Park Ridge Nursing Home | D121: 04/01/2023 | N121: 184.69
A122: 700330754 | C122: Parker Jewish Institute for Health Care and Rehabilitation | D122: 04/01/2023 | N122: 213.47
A123: 700341153 | C123: Peninsula Nursing and Rehabilitation Center | D123: 04/01/2023 | N123: 55.36
A124: 700038953 | C124: Pinnacle Multicare Nursing and Rehabilitation Center | D124: 04/01/2023 | N124: 145.26
A125: 180130853 | C125: Premier Genesee Center for Nursing and Rehabilitation | D125: 04/01/2023 | N125: 109.75
A126: 700030653 | C126: Providence Rest | D126: 04/01/2023 | N126: 137.59
A127: 395030253 | C127: Putnam Ridge | D127: 04/01/2023 | N127: 58.64
A128: 700341053 | C128: Queens Boulevard Extended Care Facility | D128: 04/01/2023 | N128: 66.78
A129: 700339753 | C129: Regal Heights Rehabilitation and Health Care Center | D129: 04/01/2023 | N129: 110.05
A130: 700339253 | C130: Rego Park Nursing Home | D130: 04/01/2023 | N130: 99.8
A131: 700339254 | C131: Rego Park Nursing Home | D131: 04/01/2023 | N131: 97.97
A132: 145130453 | C132: Rosa Coplon Jewish Home | D132: 04/01/2023 | N132: 103.73
A133: 526230153 | C133: Roscoe Rehabilitation and Nursing Center | D133: 04/01/2023 | N133: 86.05
A134: 700103353 | C134: Rutland Nursing Home Co Inc | D134: 04/01/2023 | N134: 126.78
A135: 220100053 | C135: Samaritan Keep Nursing Home Inc | D135: 04/01/2023 | N135: 57.84
A136: 352330453 | C136: Sapphire Nursing and Rehab at Goshen | D136: 04/01/2023 | N136: 65.12
A137: 350230553 | C137: Sapphire Nursing at Meadow Hill | D137: 04/01/2023 | N137: 51.01
A138: 590432253 | C138: Schaffer Extended Care Center | D138: 04/01/2023 | N138: 113.59
A139: 352930153 | C139: Schervier Pavilion | D139: 04/01/2023 | N139: 79.08
A140: 700131853 | C140: Schulman and Schachne Institute for Nursing and Rehabilitat | D140: 04/01/2023 | N140: 151.17
A141: 700430453 | C141: Sea View Hospital Rehabilitation Center And Home | D141: 04/01/2023 | N141: 164.59
A142: 455230053 | C142: Seton Health at Schuyler Ridge Residential Healthcare | D142: 04/01/2023 | N142: 54.96
A143: 700136253 | C143: Sheepshead Nursing and Rehabilitation Center | D143: 04/01/2023 | N143: 92.46
A144: 612000063 | C144: Soldiers And Sailors Memorial Hospital Extended Care Unit | D144: 04/01/2023 | N144: 85.92
A145: 592530053 | C145: St Cabrini Nursing Home | D145: 04/01/2023 | N145: 88.69
A146: 330132153 | C146: St Camillus Residential Health Care Facility | D146: 04/01/2023 | N146: 93.38
A147: 515731153 | C147: St Johnland Nursing Center Inc | D147: 04/01/2023 | N147: 115.05
A148: 270135353 | C148: St Johns Health Care Corporation | D148: 04/01/2023 | N148: 80.33
A149: 010130753 | C149: St Margarets Center | D149: 04/01/2023 | N149: 125.82
A150: 700036653 | C150: St Vincent Depaul Residence | D150: 04/01/2023 | N150: 102.14
A151: 522030153 | C151: Sullivan County Adult Care Center | D151: 04/01/2023 | N151: 141.12
A152: 556730353 | C152: Ten Broeck Center for Rehabilitation and Nursing | D152: 04/01/2023 | N152: 149.46
A153: 056630253 | C153: The Commons on St. Anthony, A Skilled Nursing & Short Term Rehabilitation Commun | D153: 04/01/2023 | N153: 100.86
A154: 595730453 | C154: The Grove at Valhalla Rehabilitation and Nursing Center | D154: 04/01/2023 | N154: 121.43
A155: 276330053 | C155: The Highlands Living Center | D155: 04/01/2023 | N155: 124.4
A156: 590930253 | C156: The New Jewish Home, Sarah Neuman | D156: 04/01/2023 | N156: 119.94
A157: 700039653 | C157: The Plaza Rehab and Nursing Center (Bronx County) | D157: 04/01/2023 | N157: 223.72
A158: 700039853 | C158: Triboro Center for Rehabilitation and Nursing (Bronx County) | D158: 04/01/2023 | N158: 81.34
A159: 700233555 | C159: Villagecare Rehabilitation and Nursing Center | D159: 04/01/2023 | N159: 169.74
A160: 700233556 | C160: Villagecare Rehabilitation and Nursing Center | D160: 04/01/2023 | N160: 81.14
A161: 170230053 | C161: Wells Nursing Home Inc | D161: 04/01/2023 | N161: 61.43

Sheet 2024 ADHC Salient days (hidden)
A1: MMIS+locator code | B1: Loc | C1: Organization | D1: MMIS | E1: MMIS salient | F1: Name | G1: 2021 Salient Days | H1: 2022 Salient days | I1: 2023 Salient data | J1: 2024 days | M1: Opsert
A2: 29936993 | B2: 3 | C2: 700235653 | D2: 1958263 | E2: 2993699 | F2: Amsterdam Nursing Home Corp (amsterdam House) | G2: 194 | H2: 460 | I2: 236 | J2: =IFERROR(VLOOKUP(C2,[9]Summary!$C$10:$K$164,9,FALSE),0) -> 286 | M2: 700235653
A3: 16314563 | B3: 3 | C3: 380100063 | D3: 1631456 | E3: 1631456 | F3: Aurelia Osborn Fox Memorial Hospital | G3: 0 | H3: 0 | I3: 0 | J3: =IFERROR(VLOOKUP(C3,[9]Summary!$C$10:$K$164,9,FALSE),0) -> 0 | M3: 380100063
C4: 132730153 | F4: BAPTIST HOME AT BROOKMEADE | J4: =IFERROR(VLOOKUP(C4,[9]Summary!$C$10:$K$164,9,FALSE),0) -> 0
A5: 15569543 | B5: 3 | C5: 700031953 | D5: 1556954 | E5: 1556954 | F5: Bainbridge Nursing And Rehabilitation Center | G5: 0 | H5: 0 | I5: 0 | J5: =IFERROR(VLOOKUP(C5,[9]Summary!$C$10:$K$164,9,FALSE),0) -> 0 | M5: 700031953
A6: 15569544 | B6: 4 | C6: 700031954 | D6: 1556954 | E6: 1556954 | F6: Bainbridge Nursing And Rehabilitation Center | G6: 11957 | H6: 24759 | I6: 24057 | J6: =IFERROR(VLOOKUP(C6,[9]Summary!$C$10:$K$164,9,FALSE),0) -> 20622 | M6: 700031954
A7: 14490903 | B7: 3 | C7: 515132153 | D7: 1449090 | E7: 1449090 | F7: Bellhaven Center For Rehabilitation and Nursing Care | G7: 0 | H7: 0 | I7: 0 | J7: =IFERROR(VLOOKUP(C7,[9]Summary!$C$10:$K$164,9,FALSE),0) -> 0 | M7: 515132153
A8: 7914423 | B8: 3 | C8: 700039953 | D8: 791442 | E8: 791442 | F8: Beth Abraham Center for Rehabilitation and Nursing | G8: 0 | H8: 0 | I8: 0 | J8: =IFERROR(VLOOKUP(C8,[9]Summary!$C$10:$K$164,9,FALSE),0) -> 0 | M8: 700039953
A9: 7914424 | B9: 4 | C9: 700039954 | D9: 791442 | E9: 791442 | F9: Beth Abraham Center for Rehabilitation and Nursing | G9: 0 | H9: 0 | I9: 0 | J9: =IFERROR(VLOOKUP(C9,[9]Summary!$C$10:$K$164,9,FALSE),0) -> 0 | M9: 700039954
A10: 7914425 | B10: 5 | C10: 700039955 | D10: 791442 | E10: 791442 | F10: Beth Abraham Center for Rehabilitation and Nursing | G10: 0 | H10: 0 | I10: 0 | J10: =IFERROR(VLOOKUP(C10,[9]Summary!$C$10:$K$164,9,FALSE),0) -> 0 | M10: 700039955
A11: 21440033 | B11: 3 | C11: 592130353 | D11: 2144003 | E11: 2144003 | F11: Bethel Nursing and Rehabilitation Center | G11: 2734 | H11: 1455 | I11: 2525 | J11: =IFERROR(VLOOKUP(C11,[9]Summary!$C$10:$K$164,9,FALSE),0) -> 0 | M11: 592130153
A12: 3999864 | B12: 4 | C12: 700139454 | D12: 399986 | E12: 399986 | F12: Boro Park Center for Rehabilitation and Healthcare | G12: 0 | H12: 0 | I12: 0 | J12: =IFERROR(VLOOKUP(C12,[9]Summary!$C$10:$K$164,9,FALSE),0) -> 0 | M12: 700139454
A13: 16176103 | B13: 3 | C13: 700039753 | D13: 1617610 | E13: 1617610 | F13: Bronx Gardens Rehabilitation and Nursing Center | G13: 0 | H13: 0 | I13: 0 | J13: =IFERROR(VLOOKUP(C13,[9]Summary!$C$10:$K$164,9,FALSE),0) -> 0 | M13: 700039753
A14: 19353043 | B14: 3 | C14: 700180053 | D14: 1935304 | E14: 1935304 | F14: Brooklyn Gardens Nursing & Rehabilitation Center | G14: 0 | H14: 0 | I14: 0 | J14: =IFERROR(VLOOKUP(C14,[9]Summary!$C$10:$K$164,9,FALSE),0) -> 0 | M14: 700180053
A15: 23242253 | B15: 3 | C15: 700130853 | D15: 2324225 | E15: 2324225 | F15: Brooklyn United Methodist Church Home | G15: 0 | H15: 0 | I15: 0 | J15: =IFERROR(VLOOKUP(C15,[9]Summary!$C$10:$K$164,9,FALSE),0) -> 0 | M15: 700130853
A16: 29982093 | B16: 3 | C16: 515731853 | D16: 1061178 | E16: 2998209 | F16: Brookside Multicare Nursing Center | G16: 0 | H16: 5681 | I16: 6471 | J16: =IFERROR(VLOOKUP(C16,[9]Summary!$C$10:$K$164,9,FALSE),0) -> 6875 | M16: 515731853
A17: 30075813 | B17: 3 | C17: 700136453 | D17: 1283105 | E17: 3007581 | F17: Bushwick Center for Rehabilitation and Health Care | G17: 0 | H17: 1961 | I17: 590 | J17: =IFERROR(VLOOKUP(C17,[9]Summary!$C$10:$K$164,9,FALSE),0) -> 2174 | M17: 700136453
A18: 12831054 | B18: 4 | C18: 700136454 | D18: 1283105 | E18: 1283105 | F18: Bushwick Center for Rehabilitation and Health Care | G18: 0 | H18: 1339 | I18: 1980 | J18: =IFERROR(VLOOKUP(C18,[9]Summary!$C$10:$K$164,9,FALSE),0) -> 0 | M18: 700136454
A19: 19805653 | B19: 3 | C19: 515330653 | D19: 1980565 | E19: 1980565 | F19: Carillon Nursing and Rehabilitation Center | G19: 0 | H19: 0 | I19: 0 | J19: =IFERROR(VLOOKUP(C19,[9]Summary!$C$10:$K$164,9,FALSE),0) -> 0 | M19: 515330653
A20: 27008833 | B20: 3 | C20: 700337353 | D20: 2700883 | E20: 2700883 | F20: Caring Family Nursing and Rehabilitation Center | G20: 0 | H20: 0 | I20: 0 | J20: =IFERROR(VLOOKUP(C20,[9]Summary!$C$10:$K$164,9,FALSE),0) -> 0 | M20: 700337353
A21: 13839443 | B21: 3 | C21: 700431053 | D21: 1383944 | E21: 1383944 | F21: Carmel Richmond Healthcare and Rehabilitation Center | G21: 0 | H21: 0 | I21: 0 | J21: =IFERROR(VLOOKUP(C21,[9]Summary!$C$10:$K$164,9,FALSE),0) -> 0 | M21: 700431053
A22: 19921303 | B22: 3 | C22: 330132653 | D22: 1992130 | E22: 1992130 | F22: Central Park Rehabilitation and Nursing Center | G22: 0 | H22: 0 | I22: 0 | J22: =IFERROR(VLOOKUP(C22,[9]Summary!$C$10:$K$164,9,FALSE),0) -> 0 | M22: 330132653
A23: 16523773 | B23: 3 | C23: 700335153 | D23: 1652377 | E23: 1652377 | F23: Chapin Home For The Aging | G23: 0 | H23: 0 | I23: 0 | J23: =IFERROR(VLOOKUP(C23,[9]Summary!$C$10:$K$164,9,FALSE),0) -> 0 | M23: 700335153
A24: 6335503 | B24: 3 | C24: 322730453 | D24: 633550 | E24: 633550 | F24: Charles T Sitrin Health Care Center Inc | G24: 2570 | H24: 6415 | I24: 7862 | J24: =IFERROR(VLOOKUP(C24,[9]Summary!$C$10:$K$164,9,FALSE),0) -> 8224 | M24: 322730453
A25: 15997243 | B25: 3 | C25: 700132353 | D25: 1599724 | E25: 1599724 | F25: Cobble Hill Health Center Inc | G25: 0 | H25: 0 | I25: 0 | J25: =IFERROR(VLOOKUP(C25,[9]Summary!$C$10:$K$164,9,FALSE),0) -> 0 | M25: 700132353
A26: 29978223 | B26: 3 | C26: 295231053 | D26: 1386992 | E26: 2997822 | F26: Cold Spring Hills Center for Nursing and Rehabilitation | G26: 3621 | H26: 10183 | I26: 12043 | J26: =IFERROR(VLOOKUP(C26,[9]Summary!$C$10:$K$164,9,FALSE),0) -> 11975 | M26: 295231053
A27: 23493063 | B27: 3 | C27: 700134853 | D27: 2349306 | E27: 2349306 | F27: Concord Nursing and Rehabilitation Center | G27: 0 | H27: 0 | I27: 0 | J27: =IFERROR(VLOOKUP(C27,[9]Summary!$C$10:$K$164,9,FALSE),0) -> 0 | M27: 700134853
A28: 18119943 | B28: 3 | C28: 500130053 | D28: 1811994 | E28: 1811994 | F28: Corning Center for Rehabilitation and Healthcare | G28: 0 | H28: 0 | I28: 0 | J28: =IFERROR(VLOOKUP(C28,[9]Summary!$C$10:$K$164,9,FALSE),0) -> 0 | M28: 500130053
A29: 14447513 | B29: 3 | C29: 110130663 | D29: 1444751 | E29: 1444751 | F29: Cortland Regional Nursing and Rehabilitation Center | G29: 977 | H29: 2497 | I29: 3239 | J29: =IFERROR(VLOOKUP(C29,[9]Summary!$C$10:$K$164,9,FALSE),0) -> 2862 | M29: 110130663
A30: 29954443 | B30: 3 | C30: 262330053 | D30: 1927999 | E30: 2995444 | F30: Crouse Community Center Inc | G30: 0 | H30: 348 | I30: 973 | J30: =IFERROR(VLOOKUP(C30,[9]Summary!$C$10:$K$164,9,FALSE),0) -> 1479 | M30: 262330053
A31: 29954444 | B31: 4 | C31: 262330054 | D31: 1927999 | E31: 2995444 | F31: Crouse Community Center Inc | G31: 1283 | H31: 1617 | I31: 975 | J31: =IFERROR(VLOOKUP(C31,[9]Summary!$C$10:$K$164,9,FALSE),0) -> 931 | M31: 262330054
A32: 29954446 | B32: 6 | C32: 262330056 | D32: 1927999 | E32: 2995444 | F32: Crouse Community Center Inc | G32: 1577 | H32: 2579 | I32: 2468 | J32: =IFERROR(VLOOKUP(C32,[9]Summary!$C$10:$K$164,9,FALSE),0) -> 2745 | M32: 262330056
A33: 29954447 | B33: 7 | C33: 262330057 | D33: 1927999 | E33: 2995444 | F33: Crouse Community Center Inc | G33: 1948 | H33: 0 | I33: 0 | J33: =IFERROR(VLOOKUP(C33,[9]Summary!$C$10:$K$164,9,FALSE),0) -> 0 | M33: 262330057
A34: 11172663 | B34: 3 | C34: 010131253 | D34: 1117266 | E34: 1117266 | F34: Daughters Of Sarah Nursing Center | G34: 0 | H34: 0 | I34: 0 | J34: =IFERROR(VLOOKUP(C34,[9]Summary!$C$10:$K$164,9,FALSE),0) -> 0 | M34: 010131253
A35: 10244463 | B35: 3 | C35: 700180953 | D35: 1024446 | E35: 1024446 | F35: Downtown Brooklyn Nursing & Rehabilitation Center | G35: 0 | H35: 0 | I35: 0 | J35: =IFERROR(VLOOKUP(C35,[9]Summary!$C$10:$K$164,9,FALSE),0) -> 0 | M35: 700180953
A36: 10244465 | B36: 5 | C36: 700180955 | D36: 1024446 | E36: 1024446 | F36: Downtown Brooklyn Nursing & Rehabilitation Center | G36: 0 | H36: 0 | I36: 0 | J36: =IFERROR(VLOOKUP(C36,[9]Summary!$C$10:$K$164,9,FALSE),0) -> 0 | M36: 700180955
A37: 10244466 | B37: 6 | C37: 700180956 | D37: 1024446 | E37: 1024446 | F37: Downtown Brooklyn Nursing & Rehabilitation Center | G37: 0 | H37: 0 | I37: 0 | J37: =IFERROR(VLOOKUP(C37,[9]Summary!$C$10:$K$164,9,FALSE),0) -> 0 | M37: 700180956
A38: 19352993 | B38: 3 | C38: 700138053 | D38: 1935299 | E38: 1935299 | F38: Dr Susan Smith Mckinney Nursing and Rehabilitation Center | G38: 0 | H38: 277 | I38: 1338 | J38: =IFERROR(VLOOKUP(C38,[9]Summary!$C$10:$K$164,9,FALSE),0) -> 1640 | M38: 700138053
A39: 19352994 | B39: 4 | C39: 700138054 | D39: 1935299 | E39: 1935299 | F39: Dr Susan Smith Mckinney Nursing and Rehabilitation Center | G39: 0 | H39: 0 | I39: 0 | J39: =IFERROR(VLOOKUP(C39,[9]Summary!$C$10:$K$164,9,FALSE),0) -> 0 | M39: 700138054
A40: 18989843 | B40: 3 | C40: 700335953 | D40: 1898984 | E40: 1898984 | F40: Dry Harbor Nursing Home | G40: 0 | H40: 0 | I40: 0 | J40: =IFERROR(VLOOKUP(C40,[9]Summary!$C$10:$K$164,9,FALSE),0) -> 0 | M40: 700335953
A41: 5452083 | B41: 3 | C41: 410230953 | D41: 545208 | E41: 545208 | F41: Eddy Memorial Geriatric Center | G41: 0 | H41: 0 | I41: 0 | J41: =IFERROR(VLOOKUP(C41,[9]Summary!$C$10:$K$164,9,FALSE),0) -> 0 | M41: 410230953
A42: 5452084 | B42: 4 | C42: 410230954 | D42: 545208 | E42: 545208 | F42: Eddy Memorial Geriatric Center | G42: 0 | H42: 0 | I42: 0 | J42: =IFERROR(VLOOKUP(C42,[9]Summary!$C$10:$K$164,9,FALSE),0) -> 0 | M42: 410230954
A43: 15358403 | B43: 3 | C43: 275430453 | D43: 1535840 | E43: 1535840 | F43: Edna Tina Wilson Living Center | G43: 0 | H43: 0 | I43: 0 | J43: =IFERROR(VLOOKUP(C43,[9]Summary!$C$10:$K$164,9,FALSE),0) -> 0 | M43: 275430453
A44: 29963303 | B44: 3 | C44: 072230453 | D44: 357988 | E44: 2996330 | F44: Elcor Nursing and Rehabilitation Center | G44: 823 | H44: 0 | I44: 0 | J44: =IFERROR(VLOOKUP(C44,[9]Summary!$C$10:$K$164,9,FALSE),0) -> 0 | L44: no days for 2022 | M44: 072230453
A45: 11987963 | B45: 3 | C45: 503430063 | D45: 1198796 | E45: 1198796 | F45: Elderwood at Hornell | G45: 0 | H45: 0 | I45: 0 | J45: =IFERROR(VLOOKUP(C45,[9]Summary!$C$10:$K$164,9,FALSE),0) -> 0 | M45: 503430063
A46: 10537813 | B46: 3 | C46: 565530353 | D46: 1053781 | E46: 1053781 | F46: Elderwood at North Creek | G46: 0 | H46: 0 | I46: 0 | J46: =IFERROR(VLOOKUP(C46,[9]Summary!$C$10:$K$164,9,FALSE),0) -> 0 | M46: 565530353
A47: 30066043 | B47: 3 | C47: 532030253 | D47: 1008020 | E47: 3006604 | F47: Elderwood at Waverly | G47: 281 | H47: 44 | I47: 1415 | J47: =IFERROR(VLOOKUP(C47,[9]Summary!$C$10:$K$164,9,FALSE),0) -> 1702 | M47: 532030153
A48: 21015863 | B48: 3 | C48: 700339653 | D48: 2101586 | E48: 2101586 | F48: Elmhurst Care Center Inc | G48: 0 | H48: 0 | I48: 0 | J48: =IFERROR(VLOOKUP(C48,[9]Summary!$C$10:$K$164,9,FALSE),0) -> 0 | M48: 700339653
A49: 17033823 | B49: 3 | C49: 272530053 | D49: 1703382 | E49: 1703382 | F49: Fairport Baptist Homes | G49: 0 | H49: 0 | I49: 0 | J49: =IFERROR(VLOOKUP(C49,[9]Summary!$C$10:$K$164,9,FALSE),0) -> 0 | M49: 272530053
A50: 29945583 | B50: 3 | C50: 700337553 | D50: 1927733 | E50: 2994558 | F50: Fairview Nursing Care Center Inc | G50: 644 | H50: 2418 | I50: 442 | J50: =IFERROR(VLOOKUP(C50,[9]Summary!$C$10:$K$164,9,FALSE),0) -> 0 | M50: 700337553
A51: 11518623 | B51: 3 | C51: 132730053 | D51: 1151862 | E51: 1151862 | F51: Ferncliff Nursing Home Co Inc | G51: 0 | H51: 0 | I51: 0 | J51: =IFERROR(VLOOKUP(C51,[9]Summary!$C$10:$K$164,9,FALSE),0) -> 0 | M51: 132730053
A52: 29939603 | B52: 3 | C52: 212430053 | D52: 1414460 | E52: 2993960 | F52: Foltsbrook Center for Nursing and Rehabilitation | G52: 1488 | H52: 2230 | I52: 2335 | J52: =IFERROR(VLOOKUP(C52,[9]Summary!$C$10:$K$164,9,FALSE),0) -> 1846 | M52: 212430053
A53: 18546593 | B53: 3 | C53: 700338753 | D53: 1854659 | E53: 1854659 | F53: Forest View Center for Rehabilitation & Nursing | G53: 0 | H53: 0 | I53: 0 | J53: =IFERROR(VLOOKUP(C53,[9]Summary!$C$10:$K$164,9,FALSE),0) -> 0 | M53: 700338753
A54: 13802493 | B54: 3 | C54: 572430253 | D54: 1380249 | E54: 1380249 | F54: Fort Hudson Nursing Center Inc | G54: 1523 | H54: 2744 | I54: 2749 | J54: =IFERROR(VLOOKUP(C54,[9]Summary!$C$10:$K$164,9,FALSE),0) -> 2725 | M54: 572430253
A55: 55582143 | B55: 3 | C55: 700180853 | D55: 1693223 | E55: 5558214 | F55: Four Seasons Nursing and Rehabilitation Center | G55: 20830 | H55: 27254 | I55: 27372 | J55: =IFERROR(VLOOKUP(C55,[9]Summary!$C$10:$K$164,9,FALSE),0) -> 22441 | M55: 700180853
A56: 55582233 | B56: 3 | C56: 700180854 | D56: 1693223 | E56: 5558223 | F56: Four Seasons Nursing and Rehabilitation Center | G56: 17544 | H56: 22291 | I56: 22965 | J56: =IFERROR(VLOOKUP(C56,[9]Summary!$C$10:$K$164,9,FALSE),0) -> 16447 | L56: no days for 2022 | M56: 700180854
A57: 24440083 | B57: 3 | C57: 700340253 | D57: 2444008 | E57: 2444008 | F57: Franklin Center for Rehabilitation and Nursing | G57: 16663 | H57: 23546 | I57: 19620 | J57: =IFERROR(VLOOKUP(C57,[9]Summary!$C$10:$K$164,9,FALSE),0) -> 5812 | M57: 700340253
A58: 44570213 | B58: 3 | C58: 435030553 | D58: 2004424 | E58: 4457021 | F58: Friedwald Center for Rehabilitation & Nursing LLC | G58: 1948 | H58: 3787 | I58: 5452 | J58: =IFERROR(VLOOKUP(C58,[9]Summary!$C$10:$K$164,9,FALSE),0) -> 6552 | M58: 435030553
A59: 30847463 | B59: 3 | C59: 515330753 | D59: 3084746 | E59: 3084746 | F59: Gurwin Jewish Nursing and Rehabilitation Center | G59: 518 | H59: 9437 | I59: 15609 | J59: =IFERROR(VLOOKUP(C59,[9]Summary!$C$10:$K$164,9,FALSE),0) -> 19836 | M59: 515330753
A60: 18191673 | B60: 3 | C60: 700136953 | D60: 1819167 | E60: 1819167 | F60: Haym Solomon Home For The Aged | G60: 0 | H60: 0 | I60: 0 | J60: =IFERROR(VLOOKUP(C60,[9]Summary!$C$10:$K$164,9,FALSE),0) -> 0 | M60: 700136953
A61: 10231563 | B61: 3 | C61: 700030253 | D61: 1023156 | E61: 1023156 | F61: Hebrew Home For The Aged At Riverdale | G61: 0 | H61: 0 | I61: 0 | J61: =IFERROR(VLOOKUP(C61,[9]Summary!$C$10:$K$164,9,FALSE),0) -> 0 | M61: 700030253
A62: 27176823 | B62: 3 | C62: 295130653 | D62: 2717682 | E62: 2717682 | F62: Highfield Gardens Care Center of Great Neck | G62: 0 | H62: 7671 | I62: 8242 | J62: =IFERROR(VLOOKUP(C62,[9]Summary!$C$10:$K$164,9,FALSE),0) -> 7648 | M62: 295130653
A63: 17552603 | B63: 3 | C63: 022830653 | D63: 1755260 | E63: 1755260 | F63: Highland Park Rehabilitation and Nursing Center | G63: 0 | H63: 0 | I63: 0 | J63: =IFERROR(VLOOKUP(C63,[9]Summary!$C$10:$K$164,9,FALSE),0) -> 0 | M63: 022830653
A64: 20659013 | B64: 3 | C64: 700335053 | D64: 2065901 | E64: 2065901 | F64: Hillside Manor Rehabilitation and Extended Care Center | G64: 0 | H64: 0 | I64: 0 | J64: =IFERROR(VLOOKUP(C64,[9]Summary!$C$10:$K$164,9,FALSE),0) -> 0 | M64: 700335053
A65: 25805323 | B65: 3 | C65: 515330953 | D65: 2580532 | E65: 2580532 | F65: Huntington Hills Center for Health and Rehabilitation | G65: 0 | H65: 0 | I65: 0 | J65: =IFERROR(VLOOKUP(C65,[9]Summary!$C$10:$K$164,9,FALSE),0) -> 0 | M65: 515330953
A66: 14111053 | B66: 3 | C66: 502230163 | D66: 1411105 | E66: 1411105 | F66: Ira Davenport Memorial Hospital SNF HRF | G66: 0 | H66: 0 | I66: 0 | J66: =IFERROR(VLOOKUP(C66,[9]Summary!$C$10:$K$164,9,FALSE),0) -> 0 | M66: 502230163
A67: 20994613 | B67: 3 | C67: 700235253 | D67: 2099461 | E67: 2099461 | F67: Isabella Geriatric Center Inc | G67: 0 | H67: 0 | I67: 0 | J67: =IFERROR(VLOOKUP(C67,[9]Summary!$C$10:$K$164,9,FALSE),0) -> 0 | M67: 700235253
A68: 29982633 | B68: 3 | C68: 275030453 | D68: 588096 | E68: 2998263 | F68: Jewish Home & Infirmary Of Rochester Ny Inc | G68: 4904 | H68: 12718 | I68: 17096 | J68: =IFERROR(VLOOKUP(C68,[9]Summary!$C$10:$K$164,9,FALSE),0) -> 17224 | M68: 275030453
A69: 29954533 | B69: 3 | C69: 330130953 | D69: 1086988 | E69: 2995453 | F69: Jewish Home Of Central New York | G69: 2764 | H69: 4772 | I69: 4885 | J69: =IFERROR(VLOOKUP(C69,[9]Summary!$C$10:$K$164,9,FALSE),0) -> 4833 | M69: 330130953
A70: 21047723 | B70: 3 | C70: 700180353 | D70: 2104772 | E70: 2104772 | F70: King David Center for Nursing and Rehabilitation | G70: 0 | H70: 0 | I70: 0 | J70: =IFERROR(VLOOKUP(C70,[9]Summary!$C$10:$K$164,9,FALSE),0) -> 0 | M70: 700180353
A71: 14495093 | B71: 3 | C71: 242400063 | D71: 1449509 | E71: 1449509 | F71: Lewis County General Hospital-nursing Home Unit | G71: 0 | H71: 0 | I71: 0 | J71: =IFERROR(VLOOKUP(C71,[9]Summary!$C$10:$K$164,9,FALSE),0) -> 0 | M71: 242400063
A72: 11109344 | B72: 4 | C72: 340230254 | D72: 1110934 | E72: 1110934 | F72: Living Center At Geneva South | G72: 0 | H72: 0 | I72: 0 | J72: =IFERROR(VLOOKUP(C72,[9]Summary!$C$10:$K$164,9,FALSE),0) -> 0 | M72: 340230254
A73: 11109345 | B73: 5 | C73: 340230255 | D73: 1110934 | E73: 1110934 | F73: Living Center At Geneva South | G73: 0 | H73: 0 | I73: 0 | J73: =IFERROR(VLOOKUP(C73,[9]Summary!$C$10:$K$164,9,FALSE),0) -> 0 | M73: 340230255
A74: 7125923 | B74: 3 | C74: 252230053 | D74: 712592 | E74: 712592 | F74: Livingston County Center for Nursing and Rehabilitatio | G74: 0 | H74: 0 | I74: 0 | J74: =IFERROR(VLOOKUP(C74,[9]Summary!$C$10:$K$164,9,FALSE),0) -> 58 | M74: 252230053
A75: 29945213 | B75: 3 | C75: 515131053 | D75: 1595019 | E75: 2994521 | F75: Long Island State Veterans Home | G75: 402 | H75: 867 | I75: 1978 | J75: =IFERROR(VLOOKUP(C75,[9]Summary!$C$10:$K$164,9,FALSE),0) -> 1623 | M75: 515131053
A76: 5825544 | B76: 4 | C76: 330132754 | D76: 582554 | E76: 582554 | F76: Loretto Health and Rehabilitation Center | G76: 0 | H76: 0 | I76: 0 | J76: =IFERROR(VLOOKUP(C76,[9]Summary!$C$10:$K$164,9,FALSE),0) -> 0 | M76: 330132754
A77: 5825545 | B77: 5 | C77: 330132755 | D77: 582554 | E77: 582554 | F77: Loretto Health and Rehabilitation Center | G77: 0 | H77: 0 | I77: 0 | J77: =IFERROR(VLOOKUP(C77,[9]Summary!$C$10:$K$164,9,FALSE),0) -> 0 | M77: 330132755
A78: 29968123 | B78: 3 | C78: 130230653 | D78: 2191160 | E78: 2996812 | F78: Lutheran Center at Poughkeepsie Inc | G78: 308 | H78: 132 | I78: 0 | J78: =IFERROR(VLOOKUP(C78,[9]Summary!$C$10:$K$164,9,FALSE),0) -> 0 | K78: no days for 2023 or 2024 | M78: 130230653
A79: 11612603 | B79: 3 | C79: 342930063 | D79: 1161260 | E79: 1161260 | F79: MM Ewing Continuing Care Center | G79: 0 | H79: 0 | I79: 0 | J79: =IFERROR(VLOOKUP(C79,[9]Summary!$C$10:$K$164,9,FALSE),0) -> 0 | M79: 342930063
A80: 27797203 | B80: 3 | C80: 322730553 | D80: 2779720 | E80: 2779720 | F80: MVHS Rehabilitation and Nursing Center | G80: 0 | H80: 0 | I80: 291 | J80: =IFERROR(VLOOKUP(C80,[9]Summary!$C$10:$K$164,9,FALSE),0) -> 369 | M80: 322730553
A81: 17549703 | B81: 3 | C81: 700341953 | D81: 1754970 | E81: 1754970 | F81: Margaret Tietz Center For Nursing Care, Inc. | G81: 0 | H81: 0 | I81: 0 | J81: =IFERROR(VLOOKUP(C81,[9]Summary!$C$10:$K$164,9,FALSE),0) -> 0 | M81: 700341953
A82: 30269553 | B82: 3 | C82: 515432953 | D82: 2496748 | E82: 3026955 | F82: Maria Regina Residence Inc | G82: 219 | H82: 1094 | I82: 1436 | J82: =IFERROR(VLOOKUP(C82,[9]Summary!$C$10:$K$164,9,FALSE),0) -> 1643 | M82: 515432153
A83: 16055453 | B83: 3 | C83: 512030263 | D83: 1605545 | E83: 1605545 | F83: Massapequa Center Rehabilitation & Nursing | G83: 0 | H83: 0 | I83: 0 | J83: =IFERROR(VLOOKUP(C83,[9]Summary!$C$10:$K$164,9,FALSE),0) -> 0 | M83: 512030263
A84: 10063993 | B84: 3 | C84: 700039153 | D84: 1006399 | E84: 1006399 | F84: Morningside Nursing and Rehabilitation Center | G84: 0 | H84: 0 | I84: 0 | J84: =IFERROR(VLOOKUP(C84,[9]Summary!$C$10:$K$164,9,FALSE),0) -> 0 | M84: 700039153
A85: 10063994 | B85: 4 | C85: 700039154 | D85: 1006399 | E85: 1006399 | F85: Morningside Nursing and Rehabilitation Center | G85: 0 | H85: 0 | I85: 0 | J85: =IFERROR(VLOOKUP(C85,[9]Summary!$C$10:$K$164,9,FALSE),0) -> 0 | M85: 700039154
A86: 17034883 | B86: 3 | C86: 290630553 | D86: 1703488 | E86: 1703488 | F86: Nassau Rehabilitation & Nursing Center | G86: 0 | H86: 0 | I86: 0 | J86: =IFERROR(VLOOKUP(C86,[9]Summary!$C$10:$K$164,9,FALSE),0) -> 0 | M86: 290630553
A87: 15438153 | B87: 3 | C87: 291030053 | D87: 1543815 | E87: 1543815 | F87: North Shore-LIJ Orzac Center for Rehabilitation | G87: 0 | H87: 0 | I87: 0 | J87: =IFERROR(VLOOKUP(C87,[9]Summary!$C$10:$K$164,9,FALSE),0) -> 0 | M87: 291030053
A88: 17818283 | B88: 3 | C88: 435030453 | D88: 1781828 | E88: 1781828 | F88: Northern Manor Geriatric Center Inc | G88: 0 | H88: 0 | I88: 0 | J88: =IFERROR(VLOOKUP(C88,[9]Summary!$C$10:$K$164,9,FALSE),0) -> 0 | M88: 435030453
A89: 29945123 | B89: 3 | C89: 435330153 | D89: 1102538 | E89: 2994512 | F89: Northern Metropolitan Residential Health Care Facility Inc | G89: 4815 | H89: 4152 | I89: 6310 | J89: =IFERROR(VLOOKUP(C89,[9]Summary!$C$10:$K$164,9,FALSE),0) -> 3998 | M89: 435330153
A90: 16409133 | B90: 3 | C90: 320231753 | D90: 1640913 | E90: 1640913 | F90: Oneida Center for Rehabilitation and Nursing | G90: 0 | H90: 2936 | I90: 2857 | J90: =IFERROR(VLOOKUP(C90,[9]Summary!$C$10:$K$164,9,FALSE),0) -> 3821 | M90: 320231753
A91: 15394773 | B91: 3 | C91: 700139153 | D91: 1539477 | E91: 1539477 | F91: Palm Gardens Care Center LLC | G91: 2092 | H91: 4920 | I91: 6032 | J91: =IFERROR(VLOOKUP(C91,[9]Summary!$C$10:$K$164,9,FALSE),0) -> 4451 | M91: 700139153
A92: 15394774 | B92: 4 | C92: 700139154 | D92: 1539477 | E92: 1539477 | F92: Palm Gardens Care Center LLC | G92: 0 | H92: 0 | I92: 186 | J92: =IFERROR(VLOOKUP(C92,[9]Summary!$C$10:$K$164,9,FALSE),0) -> 482 | M92: 700139154
A93: 22487683 | B93: 3 | C93: 290230653 | D93: 2248768 | E93: 2248768 | F93: Park Avenue Extended Care Facility | G93: 0 | H93: 0 | I93: 0 | J93: =IFERROR(VLOOKUP(C93,[9]Summary!$C$10:$K$164,9,FALSE),0) -> 0 | M93: 290230653
A94: 11864293 | B94: 3 | C94: 275430263 | D94: 1186429 | E94: 1186429 | F94: Park Ridge Nursing Home | G94: 0 | H94: 0 | I94: 0 | J94: =IFERROR(VLOOKUP(C94,[9]Summary!$C$10:$K$164,9,FALSE),0) -> 0 | M94: 275430263
A95: 11864294 | B95: 4 | C95: 275430264 | D95: 1186429 | E95: 1186429 | F95: Park Ridge Nursing Home | G95: 0 | H95: 0 | I95: 0 | J95: =IFERROR(VLOOKUP(C95,[9]Summary!$C$10:$K$164,9,FALSE),0) -> 0 | M95: 275430264
A96: 6984084 | B96: 4 | C96: 700330754 | D96: 698408 | E96: 698408 | F96: Parker Jewish Institute for Health Care and Rehabilitation | G96: 0 | H96: 0 | I96: 0 | J96: =IFERROR(VLOOKUP(C96,[9]Summary!$C$10:$K$164,9,FALSE),0) -> 0 | M96: 700330754
A97: 30319273 | B97: 3 | C97: 700341153 | D97: 3031927 | E97: 3031927 | F97: Peninsula Nursing and Rehabilitation Center | G97: 0 | H97: 0 | I97: 0 | J97: =IFERROR(VLOOKUP(C97,[9]Summary!$C$10:$K$164,9,FALSE),0) -> 0 | M97: 700341153
A98: 11592463 | B98: 3 | C98: 700038953 | D98: 1159246 | E98: 1159246 | F98: Pinnacle Multicare Nursing and Rehabilitation Center | G98: 0 | H98: 0 | I98: 0 | J98: =IFERROR(VLOOKUP(C98,[9]Summary!$C$10:$K$164,9,FALSE),0) -> 0 | M98: 700038953
A99: 23297573 | B99: 3 | C99: 090130453 | D99: 2329757 | E99: 2329757 | F99: Plattsburgh Rehabilitation and Nursing Center | G99: 859 | H99: 1738 | I99: 1928 | J99: =IFERROR(VLOOKUP(C99,[9]Summary!$C$10:$K$164,9,FALSE),0) -> 3271 | M99: 090130453
A100: 6291763 | B100: 3 | C100: 180130853 | D100: 629176 | E100: 629176 | F100: Premier Genesee Center for Nursing and Rehabilitation | G100: 569 | H100: 970 | I100: 0 | J100: =IFERROR(VLOOKUP(C100,[9]Summary!$C$10:$K$164,9,FALSE),0) -> 0 | L100: no data for 2023, but data for 2022 | M100: 180130853
A101: 10772923 | B101: 3 | C101: 322730353 | D101: 1077292 | E101: 1077292 | F101: Presbyterian Home For Central New York Inc | G101: 185 | H101: 801 | I101: 1060 | J101: =IFERROR(VLOOKUP(C101,[9]Summary!$C$10:$K$164,9,FALSE),0) -> 1175 | M101: 322730353
A102: 11332973 | B102: 3 | C102: 700030653 | D102: 1133297 | E102: 1133297 | F102: Providence Rest | G102: 0 | H102: 0 | I102: 0 | J102: =IFERROR(VLOOKUP(C102,[9]Summary!$C$10:$K$164,9,FALSE),0) -> 0 | M102: 700030653
A103: 23828873 | B103: 3 | C103: 395030253 | D103: 2382887 | E103: 2382887 | F103: Putnam Ridge | G103: 0 | H103: 0 | I103: 0 | J103: =IFERROR(VLOOKUP(C103,[9]Summary!$C$10:$K$164,9,FALSE),0) -> 0 | M103: 395030253
A104: 17106723 | B104: 3 | C104: 700341053 | D104: 1710672 | E104: 1710672 | F104: Queens Boulevard Extended Care Facility | G104: 0 | H104: 0 | I104: 0 | J104: =IFERROR(VLOOKUP(C104,[9]Summary!$C$10:$K$164,9,FALSE),0) -> 0 | M104: 700341053
A105: 24914633 | B105: 3 | C105: 700339753 | D105: 2491463 | E105: 2491463 | F105: Regal Heights Rehabilitation and Health Care Center | G105: 0 | H105: 0 | I105: 0 | J105: =IFERROR(VLOOKUP(C105,[9]Summary!$C$10:$K$164,9,FALSE),0) -> 0 | M105: 700339753
A106: 17958083 | B106: 3 | C106: 700339253 | D106: 1795808 | E106: 1795808 | F106: Rego Park Nursing Home | G106: 0 | H106: 0 | I106: 0 | J106: =IFERROR(VLOOKUP(C106,[9]Summary!$C$10:$K$164,9,FALSE),0) -> 0 | M106: 700339253
A107: 17958084 | B107: 4 | C107: 700339254 | D107: 1795808 | E107: 1795808 | F107: Rego Park Nursing Home | G107: 0 | H107: 0 | I107: 0 | J107: =IFERROR(VLOOKUP(C107,[9]Summary!$C$10:$K$164,9,FALSE),0) -> 0 | M107: 700339254
A108: 19215803 | B108: 3 | C108: 145130453 | D108: 1921580 | E108: 1921580 | F108: Rosa Coplon Jewish Home | G108: 0 | H108: 0 | I108: 0 | J108: =IFERROR(VLOOKUP(C108,[9]Summary!$C$10:$K$164,9,FALSE),0) -> 0 | M108: 145130453
A109: 14637853 | B109: 3 | C109: 526230153 | D109: 1463785 | E109: 1463785 | F109: Roscoe Rehabilitation and Nursing Center | G109: 0 | H109: 0 | I109: 0 | J109: =IFERROR(VLOOKUP(C109,[9]Summary!$C$10:$K$164,9,FALSE),0) -> 0 | M109: 526230153
A110: 12219523 | B110: 3 | C110: 700103353 | D110: 1221952 | E110: 1221952 | F110: Rutland Nursing Home Co Inc | G110: 0 | H110: 0 | I110: 0 | J110: =IFERROR(VLOOKUP(C110,[9]Summary!$C$10:$K$164,9,FALSE),0) -> 0 | M110: 700103353
A111: 7914513 | B111: 3 | C111: 220100053 | D111: 791451 | E111: 791451 | F111: Samaritan Keep Nursing Home Inc | G111: 0 | H111: 0 | I111: 0 | J111: =IFERROR(VLOOKUP(C111,[9]Summary!$C$10:$K$164,9,FALSE),0) -> 0 | M111: 220100053
A112: 15665543 | B112: 3 | C112: 352330453 | D112: 1566554 | E112: 1566554 | F112: Sapphire Nursing and Rehab at Goshen | G112: 0 | H112: 0 | I112: 0 | J112: =IFERROR(VLOOKUP(C112,[9]Summary!$C$10:$K$164,9,FALSE),0) -> 0 | M112: 352330453
A113: 21829563 | B113: 3 | C113: 350230553 | D113: 2182956 | E113: 2182956 | F113: Sapphire Nursing at Meadow Hill | G113: 0 | H113: 0 | I113: 0 | J113: =IFERROR(VLOOKUP(C113,[9]Summary!$C$10:$K$164,9,FALSE),0) -> 0 | M113: 350230553
A114: 17193823 | B114: 3 | C114: 590432253 | D114: 1719382 | E114: 1719382 | F114: Schaffer Extended Care Center | G114: 0 | H114: 0 | I114: 0 | J114: =IFERROR(VLOOKUP(C114,[9]Summary!$C$10:$K$164,9,FALSE),0) -> 0 | M114: 590432253
A115: 19013083 | B115: 3 | C115: 352930153 | D115: 1901308 | E115: 1901308 | F115: Schervier Pavilion | G115: 0 | H115: 0 | I115: 0 | J115: =IFERROR(VLOOKUP(C115,[9]Summary!$C$10:$K$164,9,FALSE),0) -> 0 | M115: 352930153
A116: 10080113 | B116: 3 | C116: 140430053 | D116: 1008011 | E116: 1008011 | F116: Schofield Residence | G116: 0 | H116: 8295 | I116: 10237 | J116: =IFERROR(VLOOKUP(C116,[9]Summary!$C$10:$K$164,9,FALSE),0) -> 9834 | M116: 140430053
A117: 25321213 | B117: 3 | C117: 700131853 | D117: 2532121 | E117: 2532121 | F117: Schulman and Schachne Institute for Nursing and Rehabilitat | G117: 0 | H117: 0 | I117: 0 | J117: =IFERROR(VLOOKUP(C117,[9]Summary!$C$10:$K$164,9,FALSE),0) -> 0 | M117: 700131853
A118: 8850893 | B118: 3 | C118: 700430453 | D118: 885089 | E118: 885089 | F118: Sea View Hospital Rehabilitation Center And Home | G118: 0 | H118: 0 | I118: 0 | J118: =IFERROR(VLOOKUP(C118,[9]Summary!$C$10:$K$164,9,FALSE),0) -> 0 | M118: 700430453
A119: 20692493 | B119: 3 | C119: 370231253 | D119: 2069249 | E119: 2069249 | F119: Seneca Hill Manor Inc | G119: 0 | H119: 777 | I119: 1798 | J119: =IFERROR(VLOOKUP(C119,[9]Summary!$C$10:$K$164,9,FALSE),0) -> 46 | M119: 370231253
A120: 18234183 | B120: 3 | C120: 455230053 | D120: 1823418 | E120: 1823418 | F120: Seton Health at Schuyler Ridge Residential Healthcare | G120: 0 | H120: 0 | I120: 0 | J120: =IFERROR(VLOOKUP(C120,[9]Summary!$C$10:$K$164,9,FALSE),0) -> 0 | M120: 455230053
A121: 24155893 | B121: 3 | C121: 700136253 | D121: 2415589 | E121: 2415589 | F121: Sheepshead Nursing and Rehabilitation Center | G121: 0 | H121: 0 | I121: 0 | J121: =IFERROR(VLOOKUP(C121,[9]Summary!$C$10:$K$164,9,FALSE),0) -> 0 | M121: 700136253
A122: 16425573 | B122: 3 | C122: 612000063 | D122: 1642557 | E122: 1642557 | F122: Soldiers And Sailors Memorial Hospital Extended Care Unit | G122: 0 | H122: 0 | I122: 0 | J122: =IFERROR(VLOOKUP(C122,[9]Summary!$C$10:$K$164,9,FALSE),0) -> 0 | M122: 612000063
A123: 11201033 | B123: 3 | C123: 700038453 | D123: 1120103 | E123: 1120103 | F123: Split Rock Rehabilitation and Health Care Center | G123: 0 | H123: 486 | I123: 1067 | J123: =IFERROR(VLOOKUP(C123,[9]Summary!$C$10:$K$164,9,FALSE),0) -> 1234 | M123: 700038453
A124: 29947873 | B124: 3 | C124: 275730053 | D124: 1186447 | E124: 2994787 | F124: St Anns Community (Aged) | G124: 1425 | H124: 4926 | I124: 5119 | J124: =IFERROR(VLOOKUP(C124,[9]Summary!$C$10:$K$164,9,FALSE),0) -> 6356 | M124: 275730053
A125: 21903523 | B125: 3 | C125: 592530053 | D125: 2190352 | E125: 2190352 | F125: St Cabrini Nursing Home | G125: 0 | H125: 0 | I125: 0 | J125: =IFERROR(VLOOKUP(C125,[9]Summary!$C$10:$K$164,9,FALSE),0) -> 0 | M125: 592530053
A126: 6147643 | B126: 3 | C126: 330132153 | D126: 614764 | E126: 614764 | F126: St Camillus Residential Health Care Facility | G126: 0 | H126: 0 | I126: 0 | J126: =IFERROR(VLOOKUP(C126,[9]Summary!$C$10:$K$164,9,FALSE),0) -> 0 | M126: 330132153
A127: 10643373 | B127: 3 | C127: 515731153 | D127: 1064337 | E127: 1064337 | F127: St Johnland Nursing Center Inc | G127: 0 | H127: 0 | I127: 0 | J127: =IFERROR(VLOOKUP(C127,[9]Summary!$C$10:$K$164,9,FALSE),0) -> 967 | M127: 515731153
A128: 3580493 | B128: 3 | C128: 270135353 | D128: 358049 | E128: 358049 | F128: St Johns Health Care Corporation | G128: 0 | H128: 0 | I128: 0 | J128: =IFERROR(VLOOKUP(C128,[9]Summary!$C$10:$K$164,9,FALSE),0) -> 0 | M128: 270135353
A129: 14075383 | B129: 3 | C129: 370230953 | D129: 1407538 | E129: 1407538 | F129: St Luke Residential Health Care Facility Inc | G129: 839 | H129: 2053 | I129: 2142 | J129: =IFERROR(VLOOKUP(C129,[9]Summary!$C$10:$K$164,9,FALSE),0) -> 2347 | M129: 370230953
A130: 19788673 | B130: 3 | C130: 010130753 | D130: 1978867 | E130: 1978867 | F130: St Margarets Center | G130: 0 | H130: 0 | I130: 0 | J130: =IFERROR(VLOOKUP(C130,[9]Summary!$C$10:$K$164,9,FALSE),0) -> 0 | M130: 010130753
A131: 10329113 | B131: 3 | C131: 700330053 | D131: 1032911 | E131: 1032911 | F131: St Marys Hospital For Children Inc | G131: 8420 | H131: 12282 | I131: 13894 | J131: =IFERROR(VLOOKUP(C131,[9]Summary!$C$10:$K$164,9,FALSE),0) -> 14058 | M131: 700330053
A132: 14462443 | B132: 3 | C132: 700036653 | D132: 1446244 | E132: 1446244 | F132: St Vincent Depaul Residence | G132: 0 | H132: 0 | I132: 0 | J132: =IFERROR(VLOOKUP(C132,[9]Summary!$C$10:$K$164,9,FALSE),0) -> 0 | M132: 700036653
A133: 14153013 | B133: 3 | C133: 522030153 | D133: 1415301 | E133: 1415301 | F133: Sullivan County Adult Care Center | G133: 0 | H133: 0 | I133: 0 | J133: =IFERROR(VLOOKUP(C133,[9]Summary!$C$10:$K$164,9,FALSE),0) -> 0 | M133: 522030153
A134: 29950043 | B134: 3 | C134: 030330753 | D134: 811629 | E134: 2995004 | F134: Susquehanna Nursing & Rehabilitation Center LLC | G134: 1595 | H134: 3496 | I134: 5061 | J134: =IFERROR(VLOOKUP(C134,[9]Summary!$C$10:$K$164,9,FALSE),0) -> 5002 | M134: 030330753
A135: 18987733 | B135: 3 | C135: 556730353 | D135: 1898773 | E135: 1898773 | F135: Ten Broeck Center for Rehabilitation and Nursing | G135: 0 | H135: 0 | I135: 0 | J135: =IFERROR(VLOOKUP(C135,[9]Summary!$C$10:$K$164,9,FALSE),0) -> 0 | M135: 556730353
A136: 6335693 | B136: 3 | C136: 056630253 | D136: 633569 | E136: 633569 | F136: The Commons on St. Anthony, A Skilled Nursing & Short Term Rehabilitation Commun | G136: 0 | H136: 0 | I136: 0 | J136: =IFERROR(VLOOKUP(C136,[9]Summary!$C$10:$K$164,9,FALSE),0) -> 0 | M136: 056630253
A137: 29946363 | B137: 3 | C137: 210130253 | D137: 1167977 | E137: 2994636 | F137: The Grand Rehabilitation and Nursing at Mohawk | G137: 1342 | H137: 3043 | I137: 3960 | J137: =IFERROR(VLOOKUP(C137,[9]Summary!$C$10:$K$164,9,FALSE),0) -> 4454 | M137: 210130253
A138: 29934973 | B138: 3 | C138: 130230953 | D138: 2491674 | E138: 2993497 | F138: The Grand Rehabilitation and Nursing at River Valley | G138: 3188 | H138: 5628 | I138: 6043 | J138: =IFERROR(VLOOKUP(C138,[9]Summary!$C$10:$K$164,9,FALSE),0) -> 6039 | M138: 130230953
A139: 20053653 | B139: 3 | C139: 320131053 | D139: 2005365 | E139: 2005365 | F139: The Grand Rehabilitation and Nursing at Rome | G139: 1767 | H139: 2726 | I139: 2811 | J139: =IFERROR(VLOOKUP(C139,[9]Summary!$C$10:$K$164,9,FALSE),0) -> 2958 | M139: 320131053
A140: 29227143 | B140: 3 | C140: 595730453 | D140: 2922714 | E140: 2922714 | F140: The Grove at Valhalla Rehabilitation and Nursing Center | G140: 0 | H140: 6947 | I140: 6786 | J140: =IFERROR(VLOOKUP(C140,[9]Summary!$C$10:$K$164,9,FALSE),0) -> 3392 | M140: 595730353
A141: 29948564 | B141: 4 | C141: 515732054 | D141: 848751 | E141: 2994856 | F141: The Hamlet Rehabilitation and Healthcare Center at Nesconset | G141: 4466 | H141: 8731 | I141: 3743 | J141: =IFERROR(VLOOKUP(C141,[9]Summary!$C$10:$K$164,9,FALSE),0) -> 0 | M141: 515732054
A142: 29948565 | B142: 5 | C142: 515732055 | D142: 848751 | E142: 2994856 | F142: The Hamlet Rehabilitation and Healthcare Center at Nesconset | G142: 10309 | H142: 16484 | I142: 6517 | J142: =IFERROR(VLOOKUP(C142,[9]Summary!$C$10:$K$164,9,FALSE),0) -> 0 | M142: 515732055
A143: 16019903 | B143: 3 | C143: 276330053 | D143: 1601990 | E143: 1601990 | F143: The Highlands Living Center | G143: 0 | H143: 0 | I143: 0 | J143: =IFERROR(VLOOKUP(C143,[9]Summary!$C$10:$K$164,9,FALSE),0) -> 0 | M143: 276330053
A144: 11718243 | B144: 3 | C144: 700234053 | D144: 1171824 | E144: 1171824 | F144: The New Jewish Home, Manhattan | G144: 2150 | H144: 6524 | I144: 7130 | J144: =IFERROR(VLOOKUP(C144,[9]Summary!$C$10:$K$164,9,FALSE),0) -> 6469 | M144: 700234053
A145: 3139423 | B145: 3 | C145: 590930253 | D145: 1957991 | E145: 313942 | F145: The New Jewish Home, Sarah Neuman | G145: 543 | H145: 0 | I145: 0 | J145: =IFERROR(VLOOKUP(C145,[9]Summary!$C$10:$K$164,9,FALSE),0) -> 2264 | M145: 590930253
A146: 3139423 | B146: 3 | C146: 700039653 | D146: 313942 | E146: 313942 | F146: The Plaza Rehab and Nursing Center (Bronx County) | G146: 0 | H146: 0 | I146: 629 | J146: =IFERROR(VLOOKUP(C146,[9]Summary!$C$10:$K$164,9,FALSE),0) -> 2264 | M146: 700039653
A147: 29943833 | B147: 3 | C147: 590330953 | D147: 1024437 | E147: 2994383 | F147: The Wartburg Home | G147: 1524 | H147: 2391 | I147: 4107 | J147: =IFERROR(VLOOKUP(C147,[9]Summary!$C$10:$K$164,9,FALSE),0) -> 4787 | M147: 590330953
A148: 11641303 | B148: 3 | C148: 700039853 | D148: 1164130 | E148: 1164130 | F148: Triboro Center for Rehabilitation and Nursing (Bronx County) | G148: 0 | H148: 0 | I148: 0 | J148: =IFERROR(VLOOKUP(C148,[9]Summary!$C$10:$K$164,9,FALSE),0) -> 0 | M148: 700039853
A149: 12810983 | B149: 3 | C149: 212430153 | D149: 1281098 | E149: 1281098 | F149: Valley Health Services Inc | G149: 0 | H149: 0 | I149: 1113 | J149: =IFERROR(VLOOKUP(C149,[9]Summary!$C$10:$K$164,9,FALSE),0) -> 0 | M149: 212430153
A150: 11863055 | B150: 5 | C150: 700233555 | D150: 1186305 | E150: 1186305 | F150: Villagecare Rehabilitation and Nursing Center | G150: 0 | H150: 0 | I150: 0 | J150: =IFERROR(VLOOKUP(C150,[9]Summary!$C$10:$K$164,9,FALSE),0) -> 0 | M150: 700233555
A151: 11863056 | B151: 6 | C151: 700233556 | D151: 1186305 | E151: 1186305 | F151: Villagecare Rehabilitation and Nursing Center | G151: 0 | H151: 0 | I151: 0 | J151: =IFERROR(VLOOKUP(C151,[9]Summary!$C$10:$K$164,9,FALSE),0) -> 0 | M151: 700233556
A152: 14087403 | B152: 3 | C152: 575030153 | D152: 1408740 | E152: 1408740 | F152: Washington Center for Rehabilitation and Healthcare | G152: 600 | H152: 2274 | I152: 2377 | J152: =IFERROR(VLOOKUP(C152,[9]Summary!$C$10:$K$164,9,FALSE),0) -> 2136 | M152: 575030153
A153: 12787023 | B153: 3 | C153: 582000063 | D153: 1278702 | E153: 1278702 | F153: Wayne Health Care | G153: 1687 | H153: 262 | I153: 0 | J153: =IFERROR(VLOOKUP(C153,[9]Summary!$C$10:$K$164,9,FALSE),0) -> 0 | M153: 582000063
A154: 15920983 | B154: 3 | C154: 170230053 | D154: 1592098 | E154: 1592098 | F154: Wells Nursing Home Inc | G154: 0 | H154: 0 | I154: 0 | J154: =IFERROR(VLOOKUP(C154,[9]Summary!$C$10:$K$164,9,FALSE),0) -> 0 | M154: 170230053
A155: 31342053 | B155: 3 | C155: 280100163 | D155: 720970 | E155: 3134205 | F155: Wilkinson Residential Health Care Facility | G155: 650 | H155: 0 | I155: 0 | J155: =IFERROR(VLOOKUP(C155,[9]Summary!$C$10:$K$164,9,FALSE),0) -> 1905 | M155: 280100163
A156: 7181853 | B156: 3 | C156: 590731953 | D156: 718185 | E156: 718185 | F156: Yonkers Gardens Center for Nursing and Rehabilitation | G156: 3202 | H156: 2940 | I156: 2769 | J156: =IFERROR(VLOOKUP(C156,[9]Summary!$C$10:$K$164,9,FALSE),0) -> 2541 | M156: 590731953
A157: 30075905 | B157: 5 | C157: 700136455 | D157: 1283105 | E157: 3007590 | F157: Bushwick Center for Rehabilitation and Health Care | G157: 0 | H157: 982 | I157: 1373 | J157: =IFERROR(VLOOKUP(C157,[9]Summary!$C$10:$K$164,9,FALSE),0) -> 1284 | M157: 700136455
A158: 102330204 | C158: 102330204 | E158: 310632 | F158: The Grand Rehabilitation and Nursing at Barnwell | J158: =IFERROR(VLOOKUP(C158,[9]Summary!$C$10:$K$164,9,FALSE),0) -> 0
G160: 149947 | H160: 287340 | I160: 303693 | J160: =SUM(J2:J158) -> 268107
